bitfinex/quotes_SOLUSD_20220302
["timestamp","ask_amount","ask_price","bid_price","bid_amount"]
[1646218355228,25.6865,106.11,106.03,63.15934362]
[1646218356028,25.9365,106.11,106.03,63.15934362]
[1646218356845,6.0,106.1,106.03,63.15934362]
[1646218357046,14.1467,106.09,106.03,63.15934362]
[1646218357248,14.1467,106.09,106.03,55.28034362]
[1646218359647,14.1467,106.09,105.99,32.0203]
[1646218359850,14.1467,106.09,105.99,32.2703]
[1646218360250,14.1467,106.09,105.99,23.4993]
[1646218360650,14.1467,106.09,106.0,51.52494356]
[1646218361150,6.0,106.08,106.0,51.52494356]
[1646218361351,14.15,106.07,106.0,51.52494356]
[1646218362051,6.0,106.08,106.0,204.03494356]
[1646218362350,16.46419477,106.11,106.0,217.65144601]
[1646218362551,14.1443,106.11,106.0,217.65144601]
[1646218362750,14.1443,106.11,106.0,122.46144601]
[1646218363151,14.1443,106.11,106.0,120.38494356]
[1646218363351,14.1443,106.11,106.0,124.15594356]
[1646218363951,14.1443,106.11,106.0,219.34594356]
[1646218364154,14.1443,106.11,106.02,48.67163424]
[1646218364352,14.1443,106.11,106.02,48.92163424]
[1646218366758,14.3943,106.11,106.02,48.92163424]
[1646218367557,14.3943,106.11,106.01,6.0]
[1646218367758,101.19,106.1,105.98,8.771]
[1646218367956,14.1495,106.07,105.99,6.0]
[1646218368156,14.1495,106.07,105.95,14.0323]
[1646218368360,14.1495,106.07,105.94,11.54]
[1646218368560,16.46939477,106.07,105.95,202.02190717]
[1646218368858,14.1495,106.07,105.97,49.28110872]
[1646218369057,14.1495,106.07,105.99,42.81515984]
[1646218369458,14.1495,106.07,105.99,43.06515984]
[1646218371560,14.1467,106.09,105.99,195.32515984]
[1646218371764,14.1467,106.09,106.0,158.26]
[1646218371960,14.1467,106.09,106.01,143.63834389]
[1646218372158,14.1467,106.09,106.01,48.69834389]
[1646218372359,21.51763717,106.12,106.01,215.10294389]
[1646218372561,14.1415,106.13,106.03,152.26]
[1646218372760,14.1415,106.13,106.04,47.26305254]
[1646218372960,14.1415,106.13,106.04,47.51305254]
[1646218373162,14.1415,106.13,106.04,50.06209257]
[1646218374162,14.1415,106.13,106.04,64.20229257]
[1646218375266,14.1415,106.13,106.04,159.39229257]
[1646218375463,14.1415,106.13,106.05,3.77]
[1646218375664,14.1415,106.13,106.06,51.26801087]
[1646218375865,62.4243,106.18,106.06,214.90917449]
[1646218376063,11.54,106.2,106.09,47.2294222]
[1646218376266,19.4255,106.22,106.12,58.87215409]
[1646218376466,6.0,106.21,106.14,58.87472281]
[1646218376766,20.1309,106.21,106.12,6.807]
[1646218376969,129.18079477,106.21,106.09,3.767]
[1646218377168,116.70763717,106.2,106.06,11.54]
[1646218377368,45.73606023,106.2,106.06,11.54]
[1646218377568,2.31989477,106.19,106.06,68.61]
[1646218377767,11.92186768,106.19,106.07,56.12855516]
[1646218377970,104.78576949,106.18,106.08,3.767]
[1646218378170,123.94178178,106.18,106.08,3.767]
[1646218378369,52.97020484,106.18,106.09,56.85260092]
[1646218378570,14.1384,106.16,106.09,56.85260092]
[1646218379070,14.1384,106.16,106.09,57.10260092]
[1646218381573,14.1384,106.16,106.1,0.43698196]
[1646218381775,14.1384,106.16,106.09,57.10260092]
[1646218382775,14.1384,106.16,106.07,3.769]
[1646218382978,14.1384,106.16,106.07,4.019]
[1646218383780,14.1384,106.16,106.08,0.41527505]
[1646218384677,14.1384,106.16,106.07,63.90541184]
[1646218384875,109.3284,106.16,106.07,63.90541184]
[1646218385076,123.84055617,106.16,106.07,63.90541184]
[1646218385280,135.38055617,106.16,106.07,63.90541184]
[1646218385481,135.38055617,106.16,106.07,63.65541184]
[1646218385688,135.63055617,106.16,106.07,63.65541184]
[1646218385882,40.44055617,106.16,106.07,63.90541184]
[1646218386085,14.1384,106.16,106.07,159.09541184]
[1646218386283,14.1384,106.16,106.07,63.90541184]
[1646218388588,14.1384,106.16,106.08,0.35585414]
[1646218388789,14.1384,106.16,106.07,63.90541184]
[1646218389192,14.1384,106.16,106.07,78.04141184]
[1646218389392,14.1384,106.16,106.07,80.59045187]
[1646218389595,14.1384,106.16,106.08,0.41277421]
[1646218389893,14.1384,106.16,106.07,80.59045187]
[1646218390113,14.1384,106.16,106.07,92.13045187]
[1646218390712,14.1384,106.16,106.07,187.32045187]
[1646218390914,14.1349,106.18,106.07,246.54227152]
[1646218391113,17.62489477,106.21,106.08,158.65904634]
[1646218391315,1.26559659,106.24,106.13,56.02331067]
[1646218391519,52.78569659,106.26,106.15,46.6199957]
[1646218391716,47.7591,106.26,106.15,210.6699957]
[1646218391915,61.8838,106.26,106.15,210.6699957]
[1646218392119,65.6348,106.26,106.15,213.21903573]
[1646218392318,47.7591,106.26,106.15,229.76131454]
[1646218392518,3.746,106.28,106.18,196.50919274]
[1646218392720,3.746,106.28,106.18,216.23519274]
[1646218392917,70.7492,106.3,106.18,216.23519274]
[1646218393117,84.8686,106.3,106.19,6.0]
[1646218393318,84.8686,106.3,106.2,152.26]
[1646218393517,84.8686,106.3,106.21,167.60310169]
[1646218393720,84.8686,106.3,106.21,167.85310169]
[1646218393918,83.8686,106.3,106.21,167.85310169]
[1646218394721,83.8686,106.3,106.21,179.39310169]
[1646218395421,83.8686,106.3,106.22,0.39317162]
[1646218395621,92.4033,106.32,106.21,236.46310169]
[1646218395821,6.0,106.31,106.22,109.3063]
[1646218396021,6.0,106.31,106.23,45.8177481]
[1646218396221,6.0,106.31,106.23,209.8677481]
[1646218396427,6.0,106.31,106.23,57.6077481]
[1646218397022,6.0,106.31,106.23,123.58512759]
[1646218397224,6.0,106.31,106.23,121.0955]
[1646218397820,14.1167,106.32,106.23,121.0955]
[1646218398023,14.1167,106.32,106.24,47.81546709]
[1646218398223,14.1141,106.34,106.24,200.32546709]
[1646218398420,14.1141,106.34,106.24,225.97926709]
[1646218398622,14.1141,106.34,106.26,95.19]
[1646218398822,14.1141,106.34,106.27,60.50930183]
[1646218399024,14.1141,106.34,106.27,60.75930183]
[1646218400023,14.1109,106.36,106.27,117.82930183]
[1646218400224,14.1109,106.36,106.27,129.36930183]
[1646218400624,158.06962298,106.38,106.28,0.38905552]
[1646218400625,13.90912298,106.38,106.28,0.38905552]
[1646218400923,5.0,106.4,106.29,52.80485664]
[1646218401125,5.0,106.4,106.29,67.14389667]
[1646218401923,70.9021,106.41,106.29,67.14389667]
[1646218402125,14.1061,106.4,106.29,81.24949667]
[1646218402729,14.1061,106.4,106.3,8.54904003]
[1646218402928,47.032,106.42,106.31,48.19603344]
[1646218403128,61.1356,106.42,106.32,11.54]
[1646218403327,61.1356,106.42,106.33,46.01648139]
[1646218403528,47.032,106.42,106.33,46.26648139]
[1646218403728,47.032,106.42,106.33,60.35552142]
[1646218403936,2.9917748,106.44,106.34,2.54904003]
[1646218404135,2.9917748,106.44,106.35,54.72182131]
[1646218404334,2.9917748,106.44,106.35,54.61339569]
[1646218404836,2.9917748,106.44,106.36,0.43426551]
[1646218405235,2.9917748,106.44,106.35,57.16243572]
[1646218406239,2.9917748,106.44,106.35,152.35243572]
[1646218406440,2.9917748,106.44,106.36,6.0]
[1646218406641,2.9917748,106.44,106.36,6.25]
[1646218406942,2.9917748,106.44,106.36,0.25]
[1646218407140,2.9917748,106.44,106.34,11.54]
[1646218407343,2.9917748,106.44,106.34,11.79]
[1646218407541,2.9917748,106.44,106.34,11.54]
[1646218407745,6.15065391,106.43,106.29,7.54904003]
[1646218407946,0.15065391,106.39,106.29,7.54904003]
[1646218408146,0.15065391,106.39,106.29,5.0]
[1646218408346,11.54,106.4,106.27,47.9348]
[1646218408543,2.31977782,106.39,106.27,47.9348]
[1646218408745,13.85977782,106.39,106.28,47.09976731]
[1646218409160,14.1114,106.36,106.28,47.09976731]
[1646218409657,73.00597782,106.39,106.28,47.09976731]
[1646218410459,84.54597782,106.39,106.28,47.09976731]
[1646218410958,95.19,106.35,106.23,19.113]
[1646218411158,95.19,106.35,106.21,15.303]
[1646218411362,158.16787782,106.35,106.21,110.493]
[1646218411558,162.97617383,106.35,106.21,98.953]
[1646218411757,162.97617383,106.35,106.22,55.26291836]
[1646218411958,117.31108972,106.34,106.22,55.26291836]
[1646218412160,6.0,106.33,106.22,55.26291836]
[1646218412363,14.1183,106.31,106.22,55.26291836]
[1646218412761,109.3083,106.31,106.21,3.763]
[1646218412962,109.3083,106.31,106.2,82.748]
[1646218412963,111.62807782,106.31,106.2,71.208]
[1646218413160,0.13003766,106.3,106.19,3.763]
[1646218413362,14.1238,106.27,106.19,3.763]
[1646218413767,14.1238,106.27,106.18,55.36656122]
[1646218414162,16.44357782,106.27,106.18,55.36656122]
[1646218414761,14.1238,106.27,106.18,55.36656122]
[1646218414963,109.3138,106.27,106.18,8.527]
[1646218415362,123.17357782,106.27,106.18,8.527]
[1646218415763,32.98357782,106.27,106.18,8.527]
[1646218415963,55.27800088,106.27,106.19,58.40820633]
[1646218416164,14.1287,106.24,106.18,8.527]
[1646218418166,14.1287,106.24,106.13,15.306]
[1646218418367,14.1287,106.24,106.14,48.61633423]
[1646218418567,14.3787,106.24,106.14,48.86633423]
[1646218419869,16.69847782,106.24,106.14,48.86633423]
[1646218420670,14.3787,106.24,106.14,48.86633423]
[1646218421071,16.69847782,106.24,106.14,48.86633423]
[1646218421372,28.23847782,106.24,106.14,0.25]
[1646218421571,37.00347782,106.24,106.12,3.766]
[1646218421870,53.50378165,106.24,106.12,3.766]
[1646218422073,9.87050629,106.23,106.12,3.766]
[1646218422271,14.1358,106.2,106.12,3.766]
[1646218422678,14.1358,106.2,106.13,55.56597092]
[1646218423075,11.54,106.22,106.13,55.56597092]
[1646218423272,14.1301,106.22,106.13,55.56597092]
[1646218423672,14.1301,106.22,106.13,55.81597092]
[1646218425276,14.1301,106.22,106.13,0.25]
[1646218425474,3.755,106.21,106.12,3.766]
[1646218425674,14.1333,106.2,106.12,3.766]
[1646218426574,16.45307782,106.2,106.12,3.766]
[1646218426774,27.99307782,106.2,106.12,3.766]
[1646218427373,31.74107782,106.2,106.12,3.766]
[1646218427574,25.6733,106.2,106.12,3.766]
[1646218428375,25.6733,106.2,106.13,59.3477339]
[1646218428577,25.6733,106.2,106.13,59.5977339]
[1646218429274,120.8633,106.2,106.13,0.25]
[1646218429475,2.31977782,106.19,106.12,3.766]
[1646218429674,14.136,106.18,106.12,3.766]
[1646218430075,14.136,106.18,106.12,4.016]
[1646218430378,17.60477782,106.21,106.12,4.016]
[1646218430575,11.79,106.21,106.12,4.016]
[1646218431177,11.54,106.21,106.13,0.39557168]
[1646218431679,11.54,106.21,106.12,4.016]
[1646218432079,14.1334,106.2,106.12,4.016]
[1646218432279,11.54,106.21,106.12,4.016]
[1646218432478,48.492,106.22,106.13,0.37306547]
[1646218433079,48.492,106.22,106.12,15.556]
[1646218433279,48.492,106.22,106.13,0.40452239]
[1646218433478,48.492,106.22,106.13,6.0]
[1646218433679,48.492,106.22,106.13,0.25]
[1646218434080,48.742,106.22,106.13,0.25]
[1646218434479,65.19297782,106.22,106.13,0.25]
[1646218434678,65.19297782,106.22,106.12,4.016]
[1646218434879,97.69783363,106.22,106.08,11.54]
[1646218435078,6.0,106.21,106.06,5.0]
[1646218435281,108.05316226,106.2,106.04,4.91423289]
[1646218435482,3.769,106.19,106.04,4.91423289]
[1646218435680,11.54,106.18,106.02,16.54]
[1646218435980,35.1198,106.18,106.05,56.34790205]
[1646218436181,39.9547652,106.17,106.05,56.34790205]
[1646218436380,146.6847652,106.17,106.05,56.34790205]
[1646218436581,23.49653243,106.16,106.05,56.34790205]
[1646218437182,35.03653243,106.16,106.05,56.34790205]
[1646218437582,23.49653243,106.15,106.05,56.59790205]
[1646218437989,37.63643243,106.15,106.05,56.59790205]
[1646218438187,39.9549652,106.15,106.05,56.59790205]
[1646218439190,23.49653243,106.14,106.05,56.59790205]
[1646218439389,14.1437,106.12,106.05,56.34790205]
[1646218439993,14.1437,106.12,106.06,0.35429754]
[1646218440190,14.1437,106.12,106.0,127.0454]
[1646218440391,14.148,106.09,106.01,6.0]
[1646218440990,14.148,106.09,106.02,53.88274995]
[1646218441193,37.35518826,106.12,106.02,53.88274995]
[1646218441397,51.65288826,106.12,106.02,53.88274995]
[1646218441590,51.65288826,106.12,106.02,54.13274995]
[1646218441591,37.35518826,106.12,106.02,54.13274995]
[1646218441792,14.1452,106.11,106.02,54.13274995]
[1646218441991,59.5269,106.13,106.03,6.0]
[1646218442191,59.5269,106.13,106.03,6.25]
[1646218443409,59.5269,106.13,106.04,0.49885631]
[1646218443410,62.1294,106.13,106.04,0.49885631]
[1646218443611,3.77,106.15,106.04,0.49885631]
[1646218443809,3.77,106.19,106.06,198.67541565]
[1646218444010,3.769,106.2,106.09,0.68723889]
[1646218444209,3.769,106.2,106.1,44.35913415]
[1646218444409,48.5808,106.21,106.11,6.0]
[1646218444609,161.6697,106.21,106.11,0.25]
[1646218444810,14.74655046,106.2,106.1,44.35913415]
[1646218445010,120.94579578,106.2,106.1,44.60913415]
[1646218445212,25.75579578,106.2,106.1,44.60913415]
[1646218445410,47.90407293,106.2,106.1,44.60913415]
[1646218445610,143.09407293,106.2,106.1,44.60913415]
[1646218445912,156.20518292,106.2,106.1,0.25]
[1646218446111,109.325,106.19,106.08,24.1914]
[1646218446509,122.62320629,106.19,106.08,0.25]
[1646218446709,122.62320629,106.19,106.05,49.2041]
[1646218446710,95.19,106.17,106.05,49.2041]
[1646218446910,106.73,106.17,106.05,49.2041]
[1646218447110,109.3298,106.15,106.03,24.3634]
[1646218447313,120.8698,106.15,106.01,27.13604003]
[1646218447510,95.19,106.13,106.02,6.0]
[1646218447710,32.66959964,106.14,106.02,6.0]
[1646218447911,26.58994381,106.12,106.02,6.0]
[1646218448113,26.58994381,106.12,106.02,64.92623557]
[1646218448713,26.58994381,106.12,106.03,0.37587567]
[1646218449013,40.73474381,106.12,106.02,65.17623557]
[1646218449312,40.73474381,106.12,106.02,59.17623557]
[1646218449917,14.1448,106.12,106.03,0.4148847]
[1646218450115,37.6681,106.14,106.03,6.0]
[1646218450316,37.6681,106.14,106.03,6.25]
[1646218450519,37.6681,106.14,106.03,6.0]
[1646218451120,37.6681,106.14,106.03,20.1419]
[1646218451317,37.6681,106.14,106.04,0.5433898]
[1646218451517,23.5259,106.14,106.04,0.5433898]
[1646218451820,23.5259,106.14,106.04,107.2733898]
[1646218452018,23.5259,106.14,106.06,46.10975374]
[1646218452219,23.5259,106.14,106.06,46.35975374]
[1646218454220,37.6673,106.14,106.06,46.35975374]
[1646218454421,64.25724381,106.14,106.06,46.35975374]
[1646218455121,159.44724381,106.14,106.03,14.1414]
[1646218455324,2.31865583,106.13,106.02,22.7817]
[1646218455522,109.04865583,106.13,106.02,22.7817]
[1646218455723,14.1456,106.12,106.02,22.7817]
[1646218456126,14.1456,106.12,106.03,49.45908501]
[1646218456523,16.46425583,106.12,106.03,49.70908501]
[1646218457223,43.05419964,106.12,106.03,49.70908501]
[1646218457424,40.73554381,106.12,106.03,49.70908501]
[1646218457824,40.73554381,106.12,106.03,49.45908501]
[1646218458026,40.98554381,106.12,106.03,49.45908501]
[1646218458327,14.3956,106.12,106.04,0.56666438]
[1646218458527,14.1456,106.12,106.04,0.56666438]
[1646218458731,11.54,106.13,106.04,0.56666438]
[1646218458929,35.0659,106.14,106.04,0.56666438]
[1646218459128,11.54,106.13,106.04,0.56666438]
[1646218459329,11.54,106.13,106.03,49.70908501]
[1646218459529,11.54,106.13,106.03,63.85118501]
[1646218459732,11.54,106.13,106.04,0.4811282]
[1646218460132,17.9118,106.15,106.04,155.29016823]
[1646218460336,28.7044,106.17,106.05,158.26]
[1646218460532,24.9344,106.17,106.06,0.4811282]
[1646218460732,24.9344,106.17,106.06,2.54904003]
[1646218460935,24.9344,106.17,106.08,51.7489732]
[1646218461131,38.48014381,106.19,106.09,0.38746364]
[1646218461530,46.09833959,106.19,106.09,0.38746364]
[1646218461736,60.23483959,106.19,106.08,68.68351323]
[1646218461931,60.23483959,106.19,106.09,2.54904003]
[1646218462132,60.48483959,106.19,106.09,2.79904003]
[1646218462332,60.48483959,106.19,106.1,0.38815656]
[1646218462532,60.48483959,106.19,106.09,2.79904003]
[1646218462736,155.67483959,106.19,106.09,2.79904003]
[1646218462935,72.02483959,106.19,106.09,2.79904003]
[1646218463133,72.02483959,106.19,106.1,0.3825917]
[1646218463734,167.21483959,106.19,106.09,2.79904003]
[1646218464935,169.53349542,106.19,106.09,2.79904003]
[1646218465134,74.34349542,106.19,106.09,0.25]
[1646218465334,74.34349542,106.19,106.09,0.44031497]
[1646218465537,50.03604381,106.19,106.09,0.44031497]
[1646218465837,25.9265,106.19,106.09,0.44031497]
[1646218466036,25.9265,106.19,106.09,6.44031497]
[1646218466238,25.9265,106.19,106.09,6.69031497]
[1646218466440,25.6765,106.19,106.09,20.3841]
[1646218466738,171.80309542,106.21,106.09,22.8574183]
[1646218467640,266.99309542,106.21,106.09,22.8574183]
[1646218467838,266.99309542,106.21,106.09,20.3841]
[1646218468039,267.24309542,106.21,106.09,20.3841]
[1646218468239,262.24309542,106.21,106.09,20.3841]
[1646218468539,267.24309542,106.21,106.09,20.3841]
[1646218468739,172.05309542,106.21,106.1,0.59378466]
[1646218468941,157.91969542,106.21,106.09,20.3841]
[1646218469142,14.1348,106.2,106.09,20.3841]
[1646218469340,30.6748,106.2,106.09,20.3841]
[1646218469541,32.99356159,106.2,106.09,20.3841]
[1646218469743,57.1031054,106.2,106.09,20.3841]
[1646218469942,169.28190118,106.2,106.09,6.25]
[1646218470144,95.19,106.18,106.09,6.25]
[1646218470344,95.19,106.16,106.09,6.0]
[1646218470642,26.4283054,106.17,106.09,6.0]
[1646218470842,37.9683054,106.17,106.09,6.0]
[1646218471243,37.9683054,106.17,106.08,48.315]
[1646218471455,133.1583054,106.17,106.08,102.48161516]
[1646218471643,16.45856159,106.16,106.04,14.08904003]
[1646218471843,95.19,106.15,106.05,6.0]
[1646218472043,40.5681054,106.16,106.05,6.0]
[1646218472544,40.5681054,106.16,106.06,55.53894899]
[1646218472943,135.7581054,106.16,106.06,55.53894899]
[1646218473543,147.2981054,106.16,106.06,55.53894899]
[1646218473744,147.5481054,106.16,106.06,55.53894899]
[1646218473947,2.31876159,106.15,106.06,55.53894899]
[1646218474145,95.19,106.14,106.06,55.53894899]
[1646218474345,40.5698054,106.15,106.06,55.53894899]
[1646218474544,40.5698054,106.15,106.06,55.78894899]
[1646218475154,14.1415,106.15,106.07,0.36408936]
[1646218475345,11.79,106.16,106.07,0.36408936]
[1646218475545,73.70854381,106.17,106.07,0.36408936]
[1646218475746,23.9203,106.17,106.06,115.27257685]
[1646218475946,23.514,106.18,106.08,0.41079893]
[1646218476148,23.514,106.18,106.09,14.1336]
[1646218476363,23.514,106.18,106.1,46.62480658]
[1646218476565,23.514,106.18,106.1,46.87480658]
[1646218477864,23.514,106.18,106.1,46.62480658]
[1646218478066,47.62354381,106.18,106.1,46.62480658]
[1646218478865,49.94196606,106.18,106.1,46.62480658]
[1646218479064,64.07856606,106.18,106.1,46.62480658]
[1646218479268,64.07856606,106.18,106.1,0.25]
[1646218479565,64.07856606,106.18,106.07,67.4394]
[1646218479766,159.26856606,106.18,106.07,67.4394]
[1646218479966,192.79736184,106.18,106.07,67.4394]
[1646218480166,192.79736184,106.18,106.07,53.3033]
[1646218480368,14.1393,106.16,106.07,103.41456747]
[1646218480766,111.64772225,106.16,106.07,47.0533]
[1646218480967,106.73,106.15,106.03,23.4831]
[1646218481166,153.8751,106.15,106.03,37.625]
[1646218481367,121.61796606,106.14,106.03,37.625]
[1646218481568,11.54,106.13,106.03,37.625]
[1646218481769,13.85842225,106.13,106.04,59.88144823]
[1646218481967,28.00202225,106.13,106.04,59.88144823]
[1646218482368,147.30156606,106.13,106.04,0.25]
[1646218482570,147.30156606,106.13,106.03,23.7331]
[1646218483168,115.3349,106.12,106.02,47.8864]
[1646218483367,11.54,106.11,106.0,2.54904003]
[1646218483569,133.15796606,106.11,105.99,78.5964]
[1646218483769,119.29954381,106.1,105.98,71.859]
[1646218483969,143.62399556,106.1,105.98,71.859]
[1646218484169,155.16399556,106.1,105.98,71.859]
[1646218484372,155.16399556,106.1,105.99,43.35767349]
[1646218484569,24.10954381,106.09,105.99,43.60767349]
[1646218484970,14.1494,106.08,105.99,43.60767349]
[1646218485770,14.1494,106.08,105.99,43.35767349]
[1646218487474,19.1475,106.1,106.0,0.63712769]
[1646218487676,66.39009517,106.12,106.0,161.36428331]
[1646218487874,60.39009517,106.12,106.0,161.61428331]
[1646218488274,60.39009517,106.12,106.0,65.78715562]
[1646218488674,60.39009517,106.12,106.0,8.71715562]
[1646218488875,60.39009517,106.12,106.0,6.25]
[1646218489075,72.21647292,106.12,106.01,14.1444]
[1646218489278,72.21647292,106.12,106.01,14.3944]
[1646218489674,72.21647292,106.12,106.02,6.0]
[1646218489876,72.21647292,106.12,106.02,0.25]
[1646218490077,72.46647292,106.12,106.02,0.25]
[1646218490475,72.46647292,106.12,106.03,0.49489872]
[1646218490677,72.21647292,106.12,106.03,46.73346447]
[1646218490877,72.21647292,106.12,106.03,46.98346447]
[1646218491478,72.21647292,106.12,106.03,46.48856575]
[1646218492081,72.46647292,106.12,106.03,46.48856575]
[1646218492277,169.97489517,106.12,106.03,0.25]
[1646218492479,14.1475,106.1,106.01,0.25]
[1646218492678,25.6875,106.1,105.99,14.3968]
[1646218492879,24.10954381,106.09,105.99,14.3968]
[1646218493483,24.10954381,106.09,106.0,47.30927382]
[1646218493684,24.10954381,106.09,106.0,47.55927382]
[1646218494183,38.25804381,106.09,106.0,47.30927382]
[1646218494690,24.10954381,106.08,106.0,47.30927382]
[1646218495290,38.25904381,106.08,106.0,47.30927382]
[1646218495889,38.25904381,106.08,106.0,47.55927382]
[1646218496291,133.44904381,106.08,105.98,48.4137]
[1646218496493,133.44904381,106.08,105.94,36.4952]
[1646218496494,133.99256606,106.07,105.94,36.4952]
[1646218496692,14.1551,106.04,105.94,49.5234]
[1646218497293,24.94414381,106.03,105.94,49.5234]
[1646218497492,25.19414381,106.03,105.94,49.5234]
[1646218498092,25.19414381,106.03,105.94,63.9275]
[1646218498292,0.25,106.03,105.94,63.9275]
[1646218498493,90.38084381,106.05,105.95,0.39063675]
[1646218498695,100.01234381,106.05,105.95,0.39063675]
[1646218498894,100.01234381,106.05,105.94,63.9275]
[1646218499096,114.16644381,106.05,105.94,63.9275]
[1646218500394,136.17247331,106.05,105.94,63.9275]
[1646218501395,135.92247331,106.05,105.94,63.9275]
[1646218502798,135.92247331,106.05,105.95,6.0]
[1646218503000,135.92247331,106.05,105.95,6.25]
[1646218503499,135.92247331,106.05,105.94,63.6775]
[1646218504200,233.43089556,106.05,105.94,63.6775]
[1646218504801,233.43089556,106.05,105.94,63.9275]
[1646218504999,233.68089556,106.05,105.94,63.9275]
[1646218505502,233.68089556,106.05,105.94,49.7734]
[1646218505701,14.1566,106.03,105.94,49.7734]
[1646218506104,24.94414381,106.02,105.94,49.7734]
[1646218506505,24.94414381,106.02,105.94,0.25]
[1646218506705,24.94414381,106.02,105.94,6.0]
[1646218506906,24.94414381,106.02,105.94,6.25]
[1646218508708,39.35204381,106.02,105.94,6.25]
[1646218508914,162.35016606,106.02,105.92,5.0]
[1646218509115,47.36627292,106.01,105.92,5.0]
[1646218509518,123.65577958,106.0,105.92,5.0]
[1646218509715,106.73,105.99,105.92,5.0]
[1646218509917,14.1637,105.98,105.92,5.0]
[1646218510734,39.10784381,105.98,105.92,5.0]
[1646218512230,38.84964381,105.98,105.92,5.0]
[1646218512432,13.9055,105.98,105.92,5.0]
[1646218514433,38.84964381,105.98,105.92,5.0]
[1646218514633,53.01294381,105.98,105.92,5.0]
[1646218515235,95.19,105.96,105.88,3.775]
[1646218515435,112.73,105.95,105.85,4.92265164]
[1646218515637,152.18627292,105.95,105.85,4.92265164]
[1646218515838,131.67414381,105.94,105.85,4.92265164]
[1646218516036,60.72627292,105.94,105.83,58.54209009]
[1646218516237,24.94414381,105.93,105.83,58.54209009]
[1646218516438,62.28627292,105.93,105.83,58.54209009]
[1646218516936,62.28627292,105.93,105.82,46.7371]
[1646218517137,76.45637292,105.93,105.82,60.9066]
[1646218517338,120.13414381,105.92,105.82,60.9066]
[1646218517540,152.51903919,105.92,105.8,28.4874]
[1646218517739,152.51903919,105.92,105.79,112.9]
[1646218517740,149.40293959,105.91,105.79,112.9]
[1646218518137,95.19,105.89,105.78,3.778]
[1646218518342,14.1776,105.87,105.78,3.778]
[1646218518537,109.3676,105.87,105.78,3.778]
[1646218518739,54.12841048,105.87,105.78,3.778]
[1646218519339,54.37841048,105.87,105.78,3.778]
[1646218519539,80.18053959,105.87,105.75,14.1789]
[1646218519738,6.0,105.86,105.75,14.1789]
[1646218519938,14.1803,105.85,105.75,14.1789]
[1646218520141,42.58071048,105.85,105.75,14.1789]
[1646218520339,95.19,105.84,105.75,14.1789]
[1646218520540,28.40041048,105.84,105.74,192.39200288]
[1646218520738,28.40041048,105.84,105.74,344.65200288]
[1646218520942,76.67792225,105.87,105.75,113.12285629]
[1646218520943,23.3134,105.87,105.75,113.12285629]
[1646218521142,37.4912,105.87,105.76,3.779]
[1646218521342,37.4912,105.87,105.78,43.70865676]
[1646218521543,37.4912,105.87,105.79,6.0]
[1646218521745,23.0634,105.87,105.79,6.25]
[1646218522143,37.3743,105.89,105.8,0.35187976]
[1646218522344,8.779,105.91,105.8,0.35187976]
[1646218522544,5.0,105.91,105.8,0.35187976]
[1646218522945,5.0,105.91,105.81,14.1715]
[1646218523144,5.0,105.91,105.83,61.06037578]
[1646218523344,5.0,105.91,105.84,6.0]
[1646218523544,34.29444151,105.94,105.85,0.55934179]
[1646218523746,8.03288379,105.94,105.85,0.55934179]
[1646218524344,8.03288379,105.94,105.84,6.80934179]
[1646218524543,8.03288379,105.94,105.84,6.25]
[1646218524744,8.03288379,105.94,105.85,0.40152189]
[1646218524945,23.46212911,105.94,105.85,0.40152189]
[1646218525147,23.46212911,105.94,105.84,20.417]
[1646218525644,149.1644,105.96,105.85,11.9434366]
[1646218525846,149.1644,105.96,105.87,59.08087303]
[1646218526045,149.1644,105.96,105.89,0.51145569]
[1646218526046,94.27062439,105.96,105.89,0.51145569]
[1646218526344,69.99872439,105.96,105.88,6.76145569]
[1646218526545,78.03160818,105.96,105.88,6.76145569]
[1646218526746,56.22838379,105.96,105.88,6.25]
[1646218526946,15.42924532,105.97,105.89,0.61917714]